bitfinex-derivatives/quotes_ETHF0:USTF0_20250210
["timestamp","ask_amount","ask_price","bid_price","bid_amount"]
[1739209159679,0.00561241,2670.8,2670.4,3.2078]
[1739209162778,3.21341241,2670.8,2670.1,4.9568]
[1739209163678,0.00561241,2670.8,2670.1,4.9568]
[1739209163878,0.00561241,2670.8,2670.6,0.00350386]
[1739209165479,0.00561241,2670.8,2670.7,3.2078]
[1739209169180,0.00561241,2670.8,2670.3,0.29728952]
[1739209169181,7.34986638,2670.8,2669.8,3.2078]
[1739209169387,7.34986638,2670.8,2669.9,0.5622]
[1739209169690,0.00561241,2670.8,2670.1,2.62566526]
[1739209169985,0.00561241,2670.8,2670.1,5.83346526]
[1739209170190,0.00561241,2670.8,2670.1,6.58229526]
[1739209170381,0.00561241,2670.8,2670.4,2.62566526]
[1739209170586,0.00561241,2670.8,2670.5,1.1639]
[1739209175692,0.00561241,2670.8,2670.7,5.83346526]
[1739209176085,0.00561241,2670.8,2670.5,1.1639]
[1739209177989,0.00561241,2670.8,2670.7,2.62566526]
[1739209182993,3.2078,2672.4,2671.3,0.74849]
[1739209183298,4.06418222,2672.1,2671.7,2.62566526]
[1739209183493,7.27198222,2672.1,2671.4,6.40896526]
[1739209183691,3.2078,2672.1,2671.4,6.40896526]
[1739209183891,4.06418222,2672.0,2671.4,6.40896526]
[1739209184092,4.06979463,2672.0,2671.5,0.00561241]
[1739209195598,4.06979463,2672.0,2671.7,2.62566526]
[1739209195899,0.00561241,2672.0,2671.7,2.62566526]
[1739209196108,0.00561241,2672.0,2671.5,0.56141241]
[1739209196295,0.00561241,2672.0,2671.5,0.00561241]
[1739209197896,0.00561241,2672.0,2671.7,2.62566526]
[1739209201204,0.00561241,2672.0,2671.6,0.5558]
[1739209202506,0.00561241,2672.0,2671.7,2.62566526]
[1739209203302,0.00561241,2672.0,2671.8,3.2078]
[1739209203910,0.00561241,2672.0,2671.8,4.9468]
[1739209205712,0.00561241,2672.0,2671.8,1.739]
[1739209206707,0.00561241,2672.0,2671.7,2.62566526]
[1739209207203,0.56351241,2672.0,2671.7,2.62566526]
[1739209207603,1.15471241,2672.0,2671.7,2.62566526]
[1739209208305,3.2078,2671.8,2671.5,0.00561241]
[1739209208609,0.74842,2671.6,2671.5,0.00561241]
[1739209208999,0.74846,2671.5,2670.8,2.62566526]
[1739209209210,3.2078,2671.1,2670.6,3.2078]
[1739209209413,0.5552,2671.0,2670.6,3.2078]
[1739209209902,4.69083482,2671.0,2670.6,3.2078]
[1739209210313,4.69083482,2671.0,2670.5,3.19186526]
[1739209211418,4.13563482,2671.0,2670.8,2.62566526]
[1739209211609,3.2078,2671.1,2670.8,2.62566526]
[1739209211811,0.6033,2671.5,2670.8,2.62566526]
[1739209212008,0.6033,2671.5,2670.9,0.6031]
[1739209212315,0.6033,2671.5,2671.1,2.62566526]
[1739209212608,3.2078,2671.6,2671.1,2.62566526]
[1739209212803,3.2078,2671.6,2671.2,0.5618]
[1739209213006,0.564,2671.7,2671.2,0.5618]
[1739209213315,3.7718,2671.7,2671.2,0.5618]
[1739209214608,3.2078,2671.7,2671.4,2.62566526]
[1739209214907,0.6033,2671.9,2671.4,2.62566526]
[1739209215211,3.21341241,2672.0,2671.5,0.5865]
[1739209215611,0.00561241,2672.0,2671.5,0.5865]
[1739209218117,3.2078,2671.8,2671.2,3.7696]
[1739209218411,0.5717,2671.7,2671.2,3.7696]
[1739209218615,4.89822284,2671.7,2671.2,3.7696]
[1739209219413,8.10602284,2671.7,2671.2,0.5618]
[1739209224610,4.89822284,2671.7,2671.2,0.5618]
[1739209226219,8.10602284,2671.7,2671.2,0.5618]
[1739209227416,3.2078,2671.7,2671.2,0.5618]
[1739209227615,3.8116,2671.7,2671.2,0.5618]
[1739209231230,3.2078,2671.7,2671.4,2.62566526]
[1739209231722,3.2078,2671.7,2671.5,0.5834]
[1739209231919,0.00561241,2672.0,2671.5,0.5834]
[1739209232719,0.00561241,2672.0,2671.5,3.7912]
[1739209233518,0.00561241,2672.0,2671.7,2.62566526]
[1739209233826,0.00561241,2672.0,2671.8,3.761]
[1739209234127,6.20766526,2673.0,2671.8,3.761]
[1739209234429,3.89386331,2672.9,2672.1,2.62566526]
[1739209234619,3.89386331,2672.9,2672.2,0.6064]
[1739209235321,0.00561241,2672.8,2672.3,0.00561241]
[1739209235921,3.2078,2672.7,2672.3,0.00561241]
[1739209236226,0.00561241,2672.8,2672.3,0.00561241]
[1739209236421,3.2078,2672.7,2672.3,0.00561241]
[1739209236626,0.00561241,2672.8,2672.3,0.00561241]
[1739209237126,0.00561241,2672.8,2672.4,2.62566526]
[1739209237427,0.00561241,2672.8,2672.4,3.19516526]
[1739209237928,0.00561241,2672.8,2672.4,0.5695]
[1739209238317,3.2078,2672.7,2672.4,0.5695]
[1739209239827,4.06824987,2672.6,2672.3,0.00561241]
[1739209240026,3.2078,2672.4,2672.3,0.00561241]
[1739209243618,7.45172131,2672.4,2672.3,0.00561241]
[1739209245331,4.24392131,2672.4,2672.3,0.00561241]
[1739209245527,1.7232,2672.5,2672.3,0.00561241]
[1739209249426,7.29027617,2672.4,2672.3,0.00561241]
[1739209249933,8.03847617,2672.4,2672.3,0.00561241]
[1739209250134,7.29027617,2672.4,2672.3,0.00561241]
[1739209253532,3.2078,2672.4,2672.3,0.00561241]
[1739209253733,3.21341241,2672.8,2672.3,0.00561241]
[1739209254430,3.21341241,2672.8,2672.4,2.62566526]
[1739209255739,3.21341241,2672.8,2672.3,0.00561241]
[1739209255941,0.604,2672.7,2672.3,0.00561241]
[1739209256736,3.2078,2672.4,2672.3,0.00561241]
[1739209258237,0.604,2672.7,2672.3,0.00561241]
[1739209258639,4.28877586,2672.6,2672.3,0.00561241]
[1739209259141,3.21341241,2672.8,2672.3,0.00561241]
[1739209259337,3.21341241,2672.8,2672.4,2.62566526]
[1739209262346,3.21341241,2672.8,2672.3,0.00561241]
[1739209265441,3.21341241,2672.8,2672.4,2.62566526]
[1739209266149,3.21341241,2672.8,2672.3,0.00561241]
[1739209266337,3.2078,2672.6,2672.3,0.00561241]
[1739209266536,3.95595,2672.6,2672.3,0.00561241]
[1739209266743,5.08221762,2672.5,2672.3,0.00561241]
[1739209267347,4.33403762,2672.5,2672.3,0.00561241]
[1739209267845,4.33403762,2672.5,2671.4,0.592]
[1739209267846,0.7483,2672.1,2671.2,2.62566526]
[1739209268052,3.2078,2671.8,2671.4,0.5492]
[1739209269546,3.9143458,2671.7,2671.4,0.5492]
[1739209270057,3.2078,2671.5,2671.2,0.5656]
[1739209271855,3.2078,2671.8,2671.2,3.19126526]
[1739209272249,4.31935257,2671.7,2671.2,3.19126526]
[1739209273156,0.5969,2672.0,2671.5,2.62566526]
[1739209273350,3.2078,2672.1,2671.5,2.62566526]
[1739209273351,3.2078,2672.1,2671.8,2.62566526]
[1739209273657,4.21967829,2671.9,2671.6,0.5928]
[1739209274150,1.137,2672.5,2671.8,5.83346526]
[1739209274549,1.137,2672.5,2671.8,6.58183526]
[1739209274858,3.21341241,2672.8,2672.1,5.83346526]
[1739209275158,3.21341241,2672.8,2672.2,1.1418]
[1739209275648,3.21341241,2672.8,2672.4,2.62566526]
[1739209277951,3.21341241,2672.8,2672.2,1.1418]
[1739209278153,3.21341241,2672.8,2672.4,2.62566526]
[1739209279149,3.21341241,2672.8,2672.2,1.1418]
[1739209279950,3.21341241,2672.8,2672.4,2.62566526]
[1739209281255,3.21341241,2672.8,2672.2,1.1418]
[1739209283256,0.00561241,2672.8,2672.4,5.83346526]
[1739209284658,0.00561241,2672.8,2672.7,2.62566526]
[1739209290654,3.21341241,2672.8,2672.2,1.1418]
[1739209290855,3.2078,2672.5,2672.2,1.1418]
[1739209291258,3.95598,2672.5,2672.2,0.5484]
[1739209291562,3.2078,2672.5,2671.9,0.605]
[1739209293753,3.2078,2672.2,2671.9,0.605]
[1739209293957,3.2078,2672.2,2671.5,5.83346526]
[1739209294158,5.38859346,2672.1,2671.5,2.62566526]
[1739209295266,3.2078,2672.0,2671.5,2.62566526]
[1739209297266,3.7805,2672.0,2671.5,2.62566526]
[1739209298666,0.5727,2672.0,2671.5,2.62566526]
[1739209299067,1.60110705,2680.7,2671.8,5.83346526]
[1739209299068,3.2078,2672.6,2671.8,5.83346526]
[1739209299264,3.2078,2672.6,2672.1,2.62566526]
[1739209299570,7.2389602,2672.6,2672.4,2.62566526]
[1739209299763,3.2078,2672.6,2672.4,2.62566526]
[1739209300167,3.2078,2672.6,2672.2,0.5557]
[1739209300764,3.2078,2672.6,2671.9,2.3118]
[1739209301076,3.2078,2672.3,2671.6,0.5557]
[1739209301271,4.18043206,2672.5,2671.6,0.5557]
[1739209301272,3.2078,2672.0,2671.6,0.5557]
[1739209301865,3.95622,2671.7,2671.3,0.5758]
[1739209302068,3.2078,2671.7,2671.0,0.5709]
[1739209302374,3.2078,2671.4,2671.0,0.5709]
[1739209302672,3.2078,2671.1,2670.6,4.95106526]
[1739209302975,3.2078,2671.4,2670.6,4.95106526]
[1739209303176,0.00561241,2671.1,2670.6,4.95106526]
[1739209303664,0.00561241,2671.1,2670.9,2.62566526]
[1739209304472,0.00561241,2671.1,2671.0,0.5709]
[1739209305471,3.2078,2671.9,2671.0,0.5709]
[1739209305672,3.2078,2671.9,2671.4,2.62566526]
[1739209305974,4.02585003,2671.8,2671.4,2.62566526]
[1739209307669,4.02585003,2671.8,2671.3,0.00561241]
[1739209308173,7.23365003,2671.8,2671.3,0.00561241]
[1739209311080,3.2078,2671.5,2671.3,0.00561241]
[1739209311380,1.7258,2671.4,2671.3,0.00561241]
[1739209311566,6.06531617,2671.4,2671.3,0.00561241]
[1739209318283,9.27311617,2671.4,2671.3,0.00561241]
[1739209318578,6.06531617,2671.4,2671.3,0.00561241]
[1739209320082,5.48431617,2671.4,2671.3,0.00561241]
[1739209320786,4.92601617,2671.4,2671.3,0.00561241]
[1739209322190,8.13381617,2671.4,2671.3,0.00561241]
[1739209323280,3.2078,2671.7,2671.3,0.00561241]
[1739209323679,3.2078,2671.7,2671.3,0.58901241]
[1739209326590,3.2078,2671.7,2671.4,3.22879495]
[1739209328296,0.00561241,2671.9,2671.4,3.22879495]
[1739209328595,0.00561241,2671.9,2671.7,3.22879495]
[1739209328795,0.00561241,2671.9,2671.8,0.5523]
[1739209328993,3.2078,2673.0,2672.0,0.7483]
[1739209329196,3.2078,2673.0,2672.2,6.43659495]
[1739209329594,3.2078,2673.0,2672.5,2.62088129]
[1739209329793,3.2078,2673.0,2672.5,5.82868129]
[1739209330196,3.21341241,2673.0,2672.5,5.82868129]
[1739209330390,3.21341241,2673.0,2672.8,2.62088129]
[1739209330697,3.21341241,2673.0,2672.9,0.557]
[1739209331104,3.21341241,2673.0,2672.7,0.00561241]
[1739209331290,7.15758379,2673.0,2672.7,0.00561241]
[1739209331485,0.5492,2672.9,2672.7,0.00561241]
[1739209331890,4.30284634,2672.8,2672.7,0.00561241]
[1739209335601,5.41844634,2672.8,2672.7,0.00561241]
[1739209335800,11.41844634,2672.8,2671.4,3.2078]
[1739209336103,3.2078,2671.8,2671.4,1.1491]
[1739209336599,3.2078,2671.5,2671.4,0.5847]
[1739209336798,3.2078,2671.5,2671.0,3.18528129]
[1739209336998,3.2078,2671.2,2671.0,0.5644]
[1739209337300,3.2078,2671.2,2671.0,0.57001241]
[1739209338203,3.2078,2671.2,2671.0,0.00561241]
[1739209347305,0.00561241,2671.4,2671.0,0.00561241]
[1739209350509,3.2078,2671.2,2671.0,0.00561241]
[1739209350905,0.593,2671.1,2671.0,0.00561241]
[1739209352111,0.57151241,2671.4,2671.0,0.00561241]
[1739209352312,1.16451241,2671.4,2671.0,0.00561241]
[1739209352512,0.59861241,2671.4,2671.0,0.00561241]
[1739209352818,0.00561241,2671.4,2671.0,3.2352872]
[1739209354506,0.00561241,2671.4,2671.1,3.2078]
[1739209354711,0.00561241,2671.4,2671.3,3.22967479]
[1739209355117,0.00561241,2671.4,2671.3,3.79367479]
[1739209359724,0.00561241,2671.4,2671.3,3.18653702]
[1739209361318,0.00561241,2671.4,2671.0,2.62814943]
[1739209361515,1.74501241,2671.4,2671.0,0.00561241]
[1739209363718,3.2078,2671.2,2671.0,0.00561241]
[1739209364221,4.13379029,2671.1,2671.0,0.00561241]
[1739209367919,0.60351241,2671.4,2671.0,2.62814943]
[1739209368120,0.00561241,2671.4,2671.0,2.62814943]
[1739209368426,0.00561241,2671.4,2671.3,2.62253702]
[1739209368833,0.00561241,2671.4,2671.2,3.19123702]
[1739209374729,0.75409241,2671.4,2671.0,0.00561241]
[1739209374933,3.2078,2671.2,2671.0,0.00561241]
[1739209375433,4.31357934,2671.1,2671.0,0.00561241]
[1739209377750,5.06213934,2671.1,2670.3,2.62253702]
[1739209377953,3.2078,2670.8,2670.3,2.62253702]
[1739209378246,0.582,2670.7,2670.3,2.62253702]
[1739209378453,0.582,2670.7,2670.2,3.2078]
[1739209379850,0.582,2670.7,2670.3,2.62253702]
[1739209381246,3.2078,2671.1,2670.3,2.62253702]
[1739209383747,3.2078,2671.1,2670.6,2.62253702]
[1739209383938,3.2078,2671.1,2670.2,3.2078]
[1739209383939,3.21341241,2671.4,2670.9,5.83033702]
[1739209384140,3.21341241,2671.4,2671.0,0.5654]
[1739209384141,0.00561241,2671.4,2671.0,0.5654]
[1739209385448,0.00561241,2671.4,2670.9,3.2078]
[1739209385760,3.2078,2671.2,2670.8,1.735]
[1739209386048,0.547,2671.1,2670.8,1.735]
[1739209387052,0.00561241,2671.4,2670.8,1.735]
[1739209387247,0.00561241,2671.4,2670.9,2.62253702]
[1739209387452,0.00561241,2671.4,2670.8,4.9428]
[1739209387453,0.00561241,2671.4,2671.2,2.62253702]
[1739209388847,0.00561241,2671.4,2671.1,3.2078]
[1739209390551,0.00561241,2671.4,2671.2,0.5929]
[1739209393954,0.00561241,2671.4,2671.3,0.5576]
[1739209396552,0.00561241,2671.4,2670.8,3.2078]
[1739209396752,3.99427764,2671.4,2670.8,3.2078]
[1739209397854,3.99427764,2671.4,2670.9,2.62253702]
[1739209398152,0.00561241,2671.4,2670.9,2.62253702]
[1739209399959,3.21341241,2671.4,2670.8,3.2078]
[1739209400253,3.2078,2671.1,2670.7,0.5765]
[1739209400459,3.2078,2671.0,2670.7,0.5765]
[1739209400853,3.7915,2671.3,2670.7,0.5765]
[1739209401050,3.2078,2671.2,2670.7,0.5765]
[1739209401351,3.2078,2670.9,2670.7,0.5765]
[1739209402452,3.2078,2670.9,2670.1,4.9418]
[1739209402453,4.32646652,2670.8,2670.1,4.9418]
[1739209402661,4.32646652,2670.8,2670.2,0.5632]
[1739209404355,3.2078,2670.9,2670.3,2.62253702]
[1739209404754,1.1466,2671.1,2670.3,2.62253702]
[1739209406855,1.1466,2671.1,2670.4,3.2078]
[1739209407463,0.5624,2671.1,2670.4,3.2078]
[1739209407759,0.5624,2671.1,2670.5,0.5619]
[1739209408162,0.5624,2671.1,2670.6,0.5494]
[1739209408958,0.5624,2671.1,2670.6,3.17193702]
[1739209409175,3.2078,2671.2,2670.6,3.17193702]
[1739209409557,3.2078,2671.2,2670.7,3.2078]
[1739209410063,3.2078,2671.2,2670.8,0.5735]
[1739209410958,0.00561241,2671.4,2670.8,0.5735]
[1739209412860,7.14118372,2671.3,2670.8,0.5735]
[1739209413565,3.2078,2671.3,2670.8,0.5735]
[1739209414062,0.00561241,2671.4,2670.8,0.5735]
[1739209414253,3.2078,2671.2,2670.8,0.5735]
[1739209417263,5.05591088,2671.1,2670.7,3.2078]
[1739209421570,3.2078,2671.2,2670.7,3.2078]
[1739209425265,1.1873,2671.3,2670.7,3.2078]
[1739209425676,7.39702173,2671.2,2670.7,3.2078]
[1739209427472,1.1873,2671.3,2670.7,3.2078]
[1739209427773,0.588,2671.3,2670.7,3.2078]
[1739209429672,3.2078,2671.2,2670.7,3.2078]
[1739209431378,0.588,2671.3,2670.7,3.2078]
[1739209431772,3.2078,2671.2,2670.7,3.2078]
[1739209434373,4.14647766,2671.1,2670.7,3.2078]
[1739209438177,0.5858,2671.0,2670.7,3.2078]
[1739209438777,3.2078,2670.9,2670.6,0.5494]
[1739209440275,4.28018334,2670.8,2670.3,0.5496]
[1739209440473,6.16485334,2670.8,2670.3,0.5496]
[1739209440675,3.2078,2670.6,2670.3,0.5496]
[1739209441184,1.136,2670.8,2670.3,0.5496]
[1739209441578,3.93938994,2670.7,2670.3,0.5496]
[1739209442180,3.2078,2671.2,2670.3,6.37993702]
[1739209442380,3.2078,2671.2,2670.6,2.62253702]
[1739209442578,3.2078,2671.2,2670.7,0.5588]
[1739209444281,1.77191241,2671.4,2671.0,3.2078]
[1739209444282,1.17181241,2671.4,2671.0,3.2078]
[1739209444480,0.00561241,2671.4,2671.1,0.5521]
[1739209444673,0.00561241,2671.4,2671.2,0.5708]
[1739209446883,0.00561241,2671.4,2671.3,3.2078]
[1739209447391,3.7806,2672.3,2671.5,2.62253702]
[1739209447392,0.5558,2672.2,2671.5,2.62253702]
[1739209447583,0.5558,2672.2,2671.6,3.2078]
[1739209447792,0.5558,2672.2,2671.7,0.5973]
[1739209448086,4.53462482,2672.2,2671.7,1.1703]
[1739209448390,4.54023723,2672.2,2671.7,1.17591241]
[1739209448581,0.56141241,2672.2,2671.7,1.17591241]
[1739209448982,0.00561241,2672.2,2671.8,2.62253702]
[1739209449285,0.00561241,2672.2,2671.9,3.2078]
[1739209449687,3.2078,2672.6,2672.1,2.62253702]
[1739209449883,3.2078,2672.9,2672.4,2.62253702]
[1739209450187,1.732,2673.7,2672.4,2.62253702]
[1739209450188,0.5511,2673.9,2672.8,3.2078]
[1739209450385,1.1493,2673.9,2673.5,3.2078]
[1739209450890,0.00561241,2674.0,2673.7,2.62253702]
[1739209451287,0.00561241,2674.0,2673.6,0.5533]
[1739209451490,0.00561241,2674.0,2673.5,3.2078]
[1739209452980,0.00561241,2674.0,2673.5,3.7722]
[1739209454281,0.00561241,2674.0,2673.6,0.5851]
[1739209454892,0.00561241,2674.0,2673.7,2.62253702]
[1739209455088,0.00561241,2674.0,2673.8,3.2078]
[1739209458098,0.00561241,2674.0,2673.7,2.62253702]
[1739209458493,3.21341241,2674.0,2673.7,4.35253702]
[1739209460095,0.00561241,2674.0,2673.7,4.35253702]
[1739209465500,0.00561241,2674.0,2673.8,3.2078]
[1739209465698,0.00561241,2674.0,2673.8,3.7805]
[1739209466204,4.3752,2675.0,2673.8,9.7805]
[1739209466403,4.3752,2675.0,2674.3,5.83033702]
[1739209466605,1.1674,2675.0,2674.4,0.5786]
[1739209466805,4.3752,2675.0,2674.4,0.5786]
[1739209467302,4.38081241,2675.0,2674.4,0.5786]
[1739209468402,3.2078,2674.7,2674.0,5.83033702]
[1739209469405,3.2078,2674.7,2674.1,0.5668]
[1739209470596,3.2078,2674.7,2674.3,2.62253702]
[1739209471103,0.58061241,2675.0,2674.6,2.62253702]
[1739209471403,0.00561241,2675.0,2674.9,2.62253702]
[1739209472201,0.5703,2675.9,2674.9,11.83033702]
[1739209472502,2.62253702,2676.6,2675.7,2.62253702]
[1739209472503,1.1512,2676.2,2675.7,2.62253702]
[1739209473510,1.15681241,2676.2,2675.7,2.62814943]
[1739209473807,3.2078,2676.0,2675.7,0.00561241]
[1739209474004,5.83033702,2676.0,2675.7,0.00561241]
[1739209474200,4.58661667,2675.9,2675.7,0.00561241]
[1739209475607,0.5703,2675.9,2675.7,0.00561241]
[1739209475797,4.24556935,2675.8,2675.7,0.00561241]
[1739209478209,0.5703,2675.9,2675.7,0.00561241]
[1739209479115,1.15681241,2676.2,2675.7,2.62814943]
[1739209479714,4.36461241,2676.2,2675.7,2.62814943]
[1739209480309,4.36461241,2676.2,2675.8,0.5854]
[1739209480508,1.15681241,2676.2,2675.8,0.5854]
[1739209480810,0.00561241,2676.2,2676.0,2.62253702]
[1739209481017,0.00561241,2676.2,2676.1,0.5693]
[1739209482107,3.2078,2676.7,2676.1,0.5693]
[1739209482411,3.2078,2676.7,2676.4,2.62253702]
[1739209482714,1.1413,2677.1,2676.6,3.2078]
[1739209483018,3.2078,2677.3,2676.8,2.62253702]
[1739209483515,3.21341241,2677.3,2676.8,2.62253702]
[1739209483718,3.21341241,2677.3,2676.7,0.5693]
[1739209485318,3.21341241,2677.3,2676.8,0.5846]
[1739209486107,0.00561241,2677.3,2676.8,0.5846]
[1739209486416,0.00561241,2677.3,2676.9,6.42320905]
[1739209487204,0.00561241,2677.3,2677.2,3.21540905]
[1739209488320,0.00561241,2677.3,2677.2,6.42320905]
[1739209489608,3.2078,2677.9,2677.2,12.42320905]
[1739209489812,3.2078,2677.9,2677.6,3.21540905]
[1739209490417,3.2078,2677.9,2677.3,3.78230905]
[1739209490612,3.2078,2677.6,2677.5,0.00560172]
[1739209490817,3.95455,2677.6,2677.5,0.00560172]
[1739209491208,3.2078,2677.6,2677.5,0.00560172]
[1739209492312,3.2078,2677.6,2676.7,3.21540905]
[1739209492515,3.2078,2677.3,2676.6,3.2078]
[1739209492714,3.2078,2677.3,2676.7,3.21540905]
[1739209493421,3.2078,2677.0,2676.4,2.8421]
[1739209493619,3.2078,2677.0,2676.7,0.00560172]
[1739209496519,1.90936,2676.9,2676.7,0.00560172]
[1739209496715,2.46986,2676.9,2676.7,0.00560172]
[1739209497415,1.7229,2676.9,2676.7,0.00560172]
[1739209497814,2.46984,2676.9,2676.7,0.00560172]
[1739209498617,1.7229,2676.9,2676.7,0.00560172]
[1739209498814,0.5605,2676.9,2676.7,0.00560172]
[1739209499021,3.2078,2677.3,2676.7,0.00560172]
[1739209500419,3.2078,2676.9,2676.7,0.00560172]
[1739209500814,0.5987,2676.8,2676.7,0.00560172]
[1739209501019,2.48207,2676.8,2676.7,0.00560172]
[1739209501715,2.48207,2676.8,2674.8,18.1696]
[1739209501716,12.07681208,2676.8,2675.4,1.726]
[1739209501919,3.2078,2675.9,2675.2,1.1193]
[1739209502321,3.2078,2675.6,2675.2,1.1193]
[1739209502528,3.2078,2675.7,2675.2,0.5516]
[1739209502723,0.00560172,2675.7,2675.2,0.5516]
[1739209503214,0.00560172,2675.7,2675.1,0.00560172]
[1739209503419,0.00560172,2675.7,2675.4,3.21540905]
[1739209503614,0.00560172,2675.7,2675.5,4.3363]
[1739209503829,0.00560172,2675.7,2675.5,6.0633]
[1739209504119,3.2078,2676.5,2675.5,12.0633]
[1739209504320,3.2078,2676.5,2675.8,6.42320905]
[1739209504920,3.2078,2676.2,2675.5,1.1285]
[1739209505115,3.89549539,2676.4,2675.5,7.55170905]
[1739209505326,0.00560172,2676.1,2675.5,7.55170905]
[1739209507517,0.00560172,2676.1,2675.8,6.42320905]
[1739209507722,0.5803,2677.3,2676.2,0.74713]
[1739209507929,0.5803,2677.3,2676.5,3.2078]
[1739209508723,0.5487,2677.2,2676.5,3.2078]
[1739209508923,3.2078,2677.0,2676.6,0.00560172]
[1739209509929,3.2078,2676.7,2676.6,0.00560172]
[1739209512021,8.25095332,2676.7,2676.6,0.00560172]
[1739209512222,0.74703,2676.6,2675.7,3.2078]
[1739209512434,3.2078,2676.2,2675.7,3.2078]
[1739209513328,0.5726,2676.5,2675.7,3.21340172]
[1739209513533,4.3245,2676.6,2676.1,6.42320905]
[1739209513534,3.7791,2676.6,2676.1,6.42320905]
[1739209513729,3.2078,2676.6,2676.2,0.5846]
[1739209513932,3.2078,2676.6,2676.3,0.5625]
[1739209514237,1.1167,2677.1,2676.3,0.5625]
[1739209515637,1.1167,2677.1,2676.4,3.21540905]
[1739209516029,0.00359024,2677.2,2676.8,3.2078]
[1739209516228,0.00359024,2677.2,2676.9,1.1149]
[1739209519632,3.21139024,2677.2,2676.4,4.94140905]
[1739209519833,3.21139024,2677.2,2676.4,5.54170905]
[1739209520444,3.95825024,2677.2,2676.4,5.54170905]
[1739209520639,3.2078,2676.7,2676.4,0.6003]
[1739209520841,4.24571578,2677.1,2676.4,0.6003]
[1739209520842,4.24571578,2677.1,2676.4,3.81570905]
[1739209521143,3.2078,2677.0,2676.4,3.81570905]
[1739209521941,0.00359024,2677.2,2676.5,3.2078]
[1739209522343,0.00359024,2677.2,2676.5,4.9338]
[1739209522938,0.00359024,2677.2,2676.8,3.2078]
[1739209523252,0.00359024,2677.2,2676.9,0.5638]
[1739209523449,0.00359024,2677.2,2677.0,0.5908]
[1739209524248,0.00359024,2677.2,2677.1,3.2078]
[1739209525846,0.00359024,2677.2,2677.0,3.80620905]
[1739209525847,0.00359024,2677.2,2676.7,3.21540905]
[1739209526041,0.00359024,2677.2,2676.6,0.5752]
[1739209526236,3.2078,2677.0,2676.6,0.5752]
[1739209526445,3.2078,2677.0,2676.5,2.3168]
[1739209526744,3.2078,2677.0,2676.5,0.5908]
[1739209527143,3.2078,2676.6,2676.5,0.5908]
[1739209527344,3.2078,2676.6,2675.8,3.21540905]
[1739209527545,3.2078,2676.6,2675.9,2.2779]
[1739209527850,0.5935,2676.5,2675.9,2.2779]
[1739209528049,1.1555,2676.5,2675.9,2.2779]
[1739209530254,3.2078,2676.4,2675.9,2.2779]
[1739209531248,1.5301,2676.5,2675.9,2.2779]
[1739209531249,3.2078,2676.1,2675.9,0.5519]
[1739209531457,3.2078,2676.4,2675.9,0.5519]
[1739209531645,1.7129,2676.5,2675.9,0.5519]
[1739209531646,3.2078,2676.1,2675.9,0.5519]
[1739209531850,3.2078,2676.1,2675.7,3.21340172]
[1739209532049,0.5672,2676.0,2675.7,3.21340172]
[1739209532546,3.2078,2675.8,2675.7,0.00560172]
[1739209533152,0.5672,2676.0,2675.7,0.00560172]
[1739209533349,3.2078,2677.0,2675.9,3.95501]
[1739209533554,3.2078,2677.0,2676.5,3.21540905]
[1739209533849,0.00359024,2677.2,2676.5,8.14920905]
[1739209534053,0.00359024,2677.2,2676.6,0.5555]
[1739209534248,0.00359024,2677.2,2676.7,0.6047]
[1739209535153,0.00359024,2677.2,2676.8,3.21540905]
[1739209535748,0.00359024,2677.2,2676.8,6.42320905]
[1739209537157,0.00359024,2677.2,2677.1,3.21540905]
[1739209537345,0.00359024,2677.2,2677.1,6.42320905]
[1739209537552,3.2078,2678.0,2677.1,13.17008905]
[1739209537752,3.2078,2678.0,2677.5,3.21540905]
[1739209538049,3.807,2678.6,2677.8,3.21540905]
[1739209538253,0.5453,2678.5,2677.9,0.5762]
[1739209538648,0.55090172,2678.5,2677.9,0.58180172]
[1739209539556,0.55090172,2678.5,2677.9,0.00560172]
[1739209539945,3.2078,2678.3,2677.9,0.00222296]
[1739209541152,0.00560172,2678.5,2677.9,1.72722296]
[1739209541859,3.2078,2678.2,2677.9,1.72722296]
[1739209542160,0.00560172,2678.5,2677.9,1.72722296]
[1739209542751,3.2078,2678.1,2677.9,0.00222296]
[1739209542951,3.2078,2678.0,2677.9,0.00222296]
[1739209543356,4.3461,2678.4,2677.9,0.00222296]
[1739209543560,3.2078,2678.3,2677.9,0.00222296]
[1739209543854,3.2078,2678.0,2677.9,0.00222296]
[1739209544060,3.95444,2678.0,2677.9,0.00222296]
[1739209544857,0.74677,2677.6,2676.9,0.5711]
[1739209545058,3.2078,2677.1,2676.9,0.5711]
[1739209545764,3.2078,2677.1,2676.7,3.2078]
[1739209546361,3.2078,2677.1,2676.6,0.00560172]
[1739209546767,3.2078,2676.8,2676.6,0.00560172]
[1739209547357,3.5824,2676.8,2676.6,0.00560172]
[1739209547761,3.5824,2676.8,2673.9,2.73637013]
[1739209547762,0.74704,2676.6,2675.6,4.9328]
[1739209548061,4.9129,2676.7,2675.6,4.9328]
[1739209548261,3.2078,2676.3,2675.7,1.133]
[1739209548462,3.2078,2676.0,2675.7,0.5455]
[1739209548756,3.9555912,2676.2,2675.2,1.725]
[1739209548958,3.2078,2676.2,2675.6,0.00560172]
[1739209549162,7.1633912,2676.2,2675.6,0.00560172]
[1739209549354,3.2078,2676.1,2675.6,0.00560172]
[1739209549553,3.2078,2676.2,2675.6,0.00560172]
[1739209549749,3.92578408,2676.0,2675.6,0.00560172]
[1739209550564,7.13358408,2676.1,2675.6,0.00560172]
[1739209550956,3.2078,2676.1,2675.6,0.00560172]
[1739209551665,4.26010984,2676.0,2675.6,0.00560172]
[1739209552061,3.2078,2675.9,2675.6,0.00560172]
[1739209552962,0.5952,2676.0,2675.6,0.00560172]
[1739209553361,7.34772292,2675.9,2675.6,0.00560172]
[1739209557966,4.13992292,2675.9,2675.6,0.00560172]
[1739209561566,7.34772292,2675.9,2675.6,0.00560172]
[1739209561765,0.74728,2675.7,2675.6,0.00560172]
[1739209561965,5.94292779,2675.8,2675.6,0.00560172]
[1739209562465,0.5553,2675.7,2675.6,0.00560172]
[1739209562662,1.30258,2675.7,2675.6,0.00560172]
[1739209562964,5.5144366,2675.7,2675.6,0.00560172]
[1739209563170,4.7671566,2675.7,2675.6,0.00560172]
[1739209563971,4.2118566,2675.7,2675.6,3.22462282]
[1739209564169,3.2078,2676.2,2675.6,3.22462282]